{"text_format":"3","workbook":"xlsx","n_sheets":2,"sheets":["Початок","Планувальник бюджету свята"],"not_rendered":{"defined_names":1},"read":"whole","date_system":"1900"}

{"sheet":"Початок","index":0,"n_rows":4,"n_cols":2,"rows_kept":4}
[null,"Робота із шаблоном"]
[null,"Скористайтеся цим планувальником бюджету свята, щоб не витратити зайвих грошей."]
[null,"Щоб почати, введіть Бюджет і Фактичні витрати в кожній таблиці категорій."]
[null,"Святковий бюджет, сума фактичних витрат і різниця обчислюються автоматично."]

{"sheet":"Планувальник бюджету свята","index":1,"n_rows":36,"n_cols":14,"rows_kept":36,"merged":[[0,2,5,7],[2,10,2,11],[8,2,8,5],[8,10,8,13],[18,2,18,5],[18,10,18,13],[29,2,29,5],[29,10,29,13]]}
[null,null,"Планувальник \nбюджету свята"]
[]
[{"$nulls":10},"БЮДЖЕТ СВЯТА",null,null,{"$f":"SUM(Подарунки[Бюджет],Пакування[Бюджет],(Подорож[Бюджет],(Харчування[Бюджет],(Розваги[Бюджет],Різне[Бюджет]))))","v":{"v":750,"d":"750.00 ₴"}}]
[{"$nulls":10},"ФАКТИЧНІ ВИТРАТИ",null,null,{"$f":"SUM((Подарунки[Фактичні],(Пакування[Фактичні],(Подорож[Фактичні],(Харчування[Фактичні],(Розваги[Фактичні],(Різне[Фактичні])))))))","v":{"v":820,"d":"820.00 ₴"}}]
[]
[{"$nulls":10},"РІЗНИЦЯ (пере- або недовиконання)",null,null,{"$f":"SUM(N3-N4)","v":{"v":-70,"d":"-70.00 ₴"}}]
[]
[]
[null,null,"ПОДАРУНКИ",{"$nulls":7},"СВЯТКОВИЙ СТІЛ"]
[null,null,"Елемент","Бюджет","Фактичні","Різниця",{"$nulls":4},"Елемент","Бюджет","Фактичні","Різниця"]
[null,null,"Сім’я",{"v":500,"d":"500.00 ₴"},{"v":495,"d":"495.00 ₴"},{"$f":"Подарунки[[#This Row],[Бюджет]]-Подарунки[[#This Row],[Фактичні]]","v":{"v":5,"d":"5.00 ₴"}},{"$nulls":4},"Продукти",null,null,{"$f":"Харчування[[#This Row],[Бюджет]]-Харчування[[#This Row],[Фактичні]]","v":{"v":0,"d":"0.00 ₴"}}]
[null,null,"Друзі",{"v":250,"d":"250.00 ₴"},{"v":325,"d":"325.00 ₴"},{"$f":"Подарунки[[#This Row],[Бюджет]]-Подарунки[[#This Row],[Фактичні]]","v":{"v":-75,"d":"-75.00 ₴"}},{"$nulls":4},"Алкоголь",null,null,{"$f":"Харчування[[#This Row],[Бюджет]]-Харчування[[#This Row],[Фактичні]]","v":{"v":0,"d":"0.00 ₴"}}]
[null,null,"Колеги",null,null,{"$f":"Подарунки[[#This Row],[Бюджет]]-Подарунки[[#This Row],[Фактичні]]","v":{"v":0,"d":"0.00 ₴"}},{"$nulls":4},"Прикраси",null,null,{"$f":"Харчування[[#This Row],[Бюджет]]-Харчування[[#This Row],[Фактичні]]","v":{"v":0,"d":"0.00 ₴"}}]
[null,null,"Учителі, вихователі, няньки тощо",null,null,{"$f":"Подарунки[[#This Row],[Бюджет]]-Подарунки[[#This Row],[Фактичні]]","v":{"v":0,"d":"0.00 ₴"}},{"$nulls":4},"Інше (натисніть клавішу Tab в останньому стовпці цього рядка, щоб додати рядок)",null,null,{"$f":"Харчування[[#This Row],[Бюджет]]-Харчування[[#This Row],[Фактичні]]","v":{"v":0,"d":"0.00 ₴"}}]
[null,null,"Благодійної пожертви",null,null,{"$f":"Подарунки[[#This Row],[Бюджет]]-Подарунки[[#This Row],[Фактичні]]","v":{"v":0,"d":"0.00 ₴"}},{"$nulls":7},{"$f":"Харчування[[#This Row],[Бюджет]]-Харчування[[#This Row],[Фактичні]]","v":{"v":0,"d":"0.00 ₴"}}]
[null,null,"Інше (натисніть клавішу Tab в останньому стовпці цього рядка, щоб додати рядок)",null,null,{"$f":"Подарунки[[#This Row],[Бюджет]]-Подарунки[[#This Row],[Фактичні]]","v":{"v":0,"d":"0.00 ₴"}}]
[null,null,"Усього",{"$f":"SUBTOTAL(109,Подарунки[Бюджет])","v":{"v":750,"d":"750.00 ₴"}},{"$f":"SUBTOTAL(109,Подарунки[Фактичні])","v":{"v":820,"d":"820.00 ₴"}},{"$f":"SUBTOTAL(109,Подарунки[Різниця])","v":{"v":-70,"d":"-70.00 ₴"}},{"$nulls":4},"Усього",{"$f":"SUBTOTAL(109,Харчування[Бюджет])","v":{"v":0,"d":"0.00 ₴"}},{"$f":"SUBTOTAL(109,Харчування[Фактичні])","v":{"v":0,"d":"0.00 ₴"}},{"$f":"SUBTOTAL(109,Харчування[Різниця])","v":{"v":0,"d":"0.00 ₴"}}]
[]
[null,null,"ПАКУВАННЯ",{"$nulls":7},"РОЗВАГИ"]
[null,null,"Елемент","Бюджет","Фактичні","Різниця",{"$nulls":4},"Елемент","Бюджет","Фактичні","Різниця"]
[null,null,"Подарункова обгортка",null,null,{"$f":"Пакування[[#This Row],[Бюджет]]-Пакування[[#This Row],[Фактичні]]","v":{"v":0,"d":"0.00 ₴"}},{"$nulls":4},"Обслуговування вечірки (бармен, офіціант, прибиральник тощо)",null,null,{"$f":"Розваги[[#This Row],[Бюджет]]-Розваги[[#This Row],[Фактичні]]","v":{"v":0,"d":"0.00 ₴"}}]
[null,null,"Етикетки",null,null,{"$f":"Пакування[[#This Row],[Бюджет]]-Пакування[[#This Row],[Фактичні]]","v":{"v":0,"d":"0.00 ₴"}},{"$nulls":4},"Прикраси",null,null,{"$f":"Розваги[[#This Row],[Бюджет]]-Розваги[[#This Row],[Фактичні]]","v":{"v":0,"d":"0.00 ₴"}}]
[null,null,"Витратні матеріали (стрічка, клей тощо)",null,null,{"$f":"Пакування[[#This Row],[Бюджет]]-Пакування[[#This Row],[Фактичні]]","v":{"v":0,"d":"0.00 ₴"}},{"$nulls":4},"Їжа та напої",null,null,{"$f":"Розваги[[#This Row],[Бюджет]]-Розваги[[#This Row],[Фактичні]]","v":{"v":0,"d":"0.00 ₴"}}]
[null,null,"Коробки",null,null,{"$f":"Пакування[[#This Row],[Бюджет]]-Пакування[[#This Row],[Фактичні]]","v":{"v":0,"d":"0.00 ₴"}},{"$nulls":4},"Одяг",null,null,{"$f":"Розваги[[#This Row],[Бюджет]]-Розваги[[#This Row],[Фактичні]]","v":{"v":0,"d":"0.00 ₴"}}]
[null,null,"Поштові витрати",null,null,{"$f":"Пакування[[#This Row],[Бюджет]]-Пакування[[#This Row],[Фактичні]]","v":{"v":0,"d":"0.00 ₴"}},{"$nulls":4},"Квитки",null,null,{"$f":"Розваги[[#This Row],[Бюджет]]-Розваги[[#This Row],[Фактичні]]","v":{"v":0,"d":"0.00 ₴"}}]
[null,null,"Інше (натисніть клавішу Tab в останньому стовпці цього рядка, щоб додати рядок)",null,null,{"$f":"Пакування[[#This Row],[Бюджет]]-Пакування[[#This Row],[Фактичні]]","v":{"v":0,"d":"0.00 ₴"}},{"$nulls":4},"Обіди в ресторані",null,null,{"$f":"Розваги[[#This Row],[Бюджет]]-Розваги[[#This Row],[Фактичні]]","v":{"v":0,"d":"0.00 ₴"}}]
[{"$nulls":10},"Інше (натисніть клавішу Tab в останньому стовпці цього рядка, щоб додати рядок)",null,null,{"$f":"Розваги[[#This Row],[Бюджет]]-Розваги[[#This Row],[Фактичні]]","v":{"v":0,"d":"0.00 ₴"}}]
[null,null,"Усього",{"$f":"SUBTOTAL(109,Пакування[Бюджет])","v":{"v":0,"d":"0.00 ₴"}},{"$f":"SUBTOTAL(109,Пакування[Фактичні])","v":{"v":0,"d":"0.00 ₴"}},{"$f":"SUBTOTAL(109,Пакування[Різниця])","v":{"v":0,"d":"0.00 ₴"}},{"$nulls":4},"Усього",{"$f":"SUBTOTAL(109,Розваги[Бюджет])","v":{"v":0,"d":"0.00 ₴"}},{"$f":"SUBTOTAL(109,Розваги[Фактичні])","v":{"v":0,"d":"0.00 ₴"}},{"$f":"SUBTOTAL(109,Розваги[Різниця])","v":{"v":0,"d":"0.00 ₴"}}]
[]
[null,null,"ПОДОРОЖ",{"$nulls":7},"РІЗНЕ"]
[null,null,"Елемент","Бюджет","Фактичні","Різниця",{"$nulls":4},"Елемент","Бюджет","Фактичні","Різниця"]
[null,null,"Авіаквитки",null,null,{"$f":"Подорож[[#This Row],[Бюджет]]-Подорож[[#This Row],[Фактичні]]","v":{"v":0,"d":"0.00 ₴"}},{"$nulls":4},"Святкові фото",null,null,{"$f":"Різне[[#This Row],[Бюджет]]-Різне[[#This Row],[Фактичні]]","v":{"v":0,"d":"0.00 ₴"}}]
[null,null,"Проживання",null,null,{"$f":"Подорож[[#This Row],[Бюджет]]-Подорож[[#This Row],[Фактичні]]","v":{"v":0,"d":"0.00 ₴"}},{"$nulls":4},"Газ ",null,null,{"$f":"Різне[[#This Row],[Бюджет]]-Різне[[#This Row],[Фактичні]]","v":{"v":0,"d":"0.00 ₴"}}]
[null,null,"Транспорт",null,null,{"$f":"Подорож[[#This Row],[Бюджет]]-Подорож[[#This Row],[Фактичні]]","v":{"v":0,"d":"0.00 ₴"}},{"$nulls":4},"Інше (натисніть клавішу Tab в останньому стовпці цього рядка, щоб додати рядок)",null,null,{"$f":"Різне[[#This Row],[Бюджет]]-Різне[[#This Row],[Фактичні]]","v":{"v":0,"d":"0.00 ₴"}}]
[null,null,"Інше (натисніть клавішу Tab в останньому стовпці цього рядка, щоб додати рядок)",null,null,{"$f":"Подорож[[#This Row],[Бюджет]]-Подорож[[#This Row],[Фактичні]]","v":{"v":0,"d":"0.00 ₴"}}]
[null,null,"Усього",{"$f":"SUBTOTAL(109,Подорож[Бюджет])","v":{"v":0,"d":"0.00 ₴"}},{"$f":"SUBTOTAL(109,Подорож[Фактичні])","v":{"v":0,"d":"0.00 ₴"}},{"$f":"SUBTOTAL(109,Подорож[Різниця])","v":{"v":0,"d":"0.00 ₴"}},{"$nulls":4},"Усього",{"$f":"SUBTOTAL(109,Різне[Бюджет])","v":{"v":0,"d":"0.00 ₴"}},{"$f":"SUBTOTAL(109,Різне[Фактичні])","v":{"v":0,"d":"0.00 ₴"}},{"$f":"SUBTOTAL(109,Різне[Різниця])","v":{"v":0,"d":"0.00 ₴"}}]